bitfinex/quotes_SOLUSD_20250805
["timestamp","ask_amount","ask_price","bid_price","bid_amount"]
[1754412580964,0.2,163.41,163.4,44.14]
[1754412582469,0.2,163.41,163.4,59.38837714]
[1754412583340,13.47724947,163.41,163.35,0.67]
[1754412583560,12.61724947,163.38,163.36,15.10621557]
[1754412583863,12.61724947,163.38,163.37,44.14]
[1754412584070,13.27724947,163.38,163.37,59.24621557]
[1754412584567,13.27724947,163.38,163.37,44.14]
[1754412585354,19.39794967,163.38,163.37,44.14]
[1754412585751,19.39794967,163.38,163.35,44.14]
[1754412585982,12.61724947,163.36,163.35,44.14]
[1754412586308,13.27724947,163.36,163.31,0.06]
[1754412586451,26.0,163.33,163.32,44.14]
[1754412586787,39.27724947,163.33,163.32,44.14]
[1754412587292,38.61724947,163.33,163.32,44.14]
[1754412587580,6.12223041,163.34,163.32,44.14]
[1754412587781,26.0,163.35,163.32,65.51132595]
[1754412587950,12.61724947,163.37,163.33,15.10621557]
[1754412588151,12.61724947,163.37,163.34,44.14]
[1754412588664,13.27724947,163.37,163.34,44.14]
[1754412588870,12.61724947,163.38,163.35,15.24837714]
[1754412589079,32.780088,163.4,163.36,44.14]
[1754412589289,12.61724947,163.38,163.36,44.14]
[1754412589448,12.61724947,163.39,163.36,44.14]
[1754412589784,0.2,163.41,163.37,15.91837714]
[1754412589977,4.26401981,163.41,163.38,44.14]
[1754412590197,4.26401981,163.41,163.38,44.81]
[1754412590388,4.26401981,163.41,163.38,44.14]
[1754412590773,4.92401981,163.41,163.38,44.14]
[1754412591082,17.54126928,163.41,163.38,44.14]
[1754412591273,13.47724947,163.41,163.38,44.14]
[1754412591476,0.86,163.41,163.38,44.14]
[1754412591707,13.47724947,163.41,163.38,44.14]
[1754412592099,12.81724947,163.41,163.38,44.14]
[1754412592299,0.2,163.41,163.39,0.81216157]
[1754412592504,0.2,163.41,163.4,71.86346504]
[1754412592685,0.2,163.41,163.4,72.67562661]
[1754412593080,0.2,163.46,163.41,15.24837714]
[1754412593306,0.2,163.46,163.45,12.75941104]
[1754412593493,0.2,163.46,163.45,56.89941104]
[1754412593823,0.2,163.46,163.45,44.14]
[1754412597109,0.86,163.46,163.45,44.14]
[1754412597409,0.2,163.46,163.45,44.14]
[1754412599812,0.2,163.46,163.45,78.79370553]
[1754412600221,0.2,163.46,163.45,59.38837714]
[1754412600418,0.2,163.46,163.45,59.36837714]
[1754412600620,0.2,163.46,163.42,13.28724947]
[1754412600621,13.47724947,163.46,163.41,12.61724947]
[1754412600806,13.27724947,163.45,163.42,44.12]
[1754412601004,26.2,163.46,163.43,28.39346504]
[1754412601334,0.2,163.46,163.44,44.79]
[1754412601518,0.2,163.46,163.44,57.40724947]
[1754412602023,0.2,163.46,163.44,44.79]
[1754412602212,0.2,163.46,163.44,44.12]
[1754412602807,0.2,163.46,163.45,28.53562661]
[1754412603921,0.2,163.46,163.45,34.65370553]
[1754412604692,0.2,163.46,163.45,22.03645606]
[1754412604898,0.2,163.46,163.45,15.10621557]
[1754412605107,0.2,163.46,163.45,44.1]
[1754412605309,0.2,163.46,163.45,71.96562661]
[1754412605533,0.2,163.46,163.45,72.64562661]
[1754412605722,0.2,163.46,163.45,168.14802867]
[1754412605918,0.2,163.46,163.45,167.86370553]
[1754412607819,0.2,163.46,163.45,155.24645606]
[1754412608020,0.2,163.46,163.45,154.56645606]
[1754412608236,0.2,163.46,163.45,167.18370553]
[1754412609225,0.2,163.46,163.45,154.56645606]
[1754412610311,13.47724947,163.46,163.41,95.2193423]
[1754412610516,0.66,163.45,163.42,59.20621557]
[1754412610734,0.66,163.45,163.43,0.14216157]
[1754412610930,13.27724947,163.45,163.44,59.34837714]
[1754412611132,13.27724947,163.45,163.44,148.44837714]
[1754412611435,12.61724947,163.45,163.44,148.44837714]
[1754412612017,13.27724947,163.45,163.44,133.2]
[1754412612939,19.39532839,163.45,163.44,44.1]
[1754412613123,26.0,163.44,163.35,0.68]
[1754412613314,12.61724947,163.39,163.36,44.08]
[1754412613635,12.61724947,163.39,163.38,15.24837714]
[1754412613837,12.61724947,163.39,163.38,59.32837714]
[1754412614543,13.27724947,163.39,163.38,44.08]
[1754412614729,19.39757507,163.39,163.38,44.08]
[1754412614914,13.27724947,163.39,163.38,44.08]
[1754412615543,19.39757507,163.39,163.38,44.08]
[1754412616055,19.39757507,163.39,163.37,44.1]
[1754412616257,19.39794967,163.38,163.37,44.1]
[1754412616471,18.73794967,163.38,163.36,44.1]
[1754412616760,13.27724947,163.37,163.36,44.1]
[1754412616929,13.27724947,163.37,163.35,44.1]
[1754412617128,13.27724947,163.36,163.31,0.06]
[1754412617450,0.66,163.36,163.32,44.1]
[1754412618124,0.66,163.35,163.32,44.1]
[1754412618319,6.78196012,163.35,163.32,44.1]
[1754412618624,12.61724947,163.33,163.32,44.1]
[1754412618947,26.0,163.38,163.33,15.24837714]
[1754412619264,12.61724947,163.38,163.35,15.24837714]
[1754412619447,12.61724947,163.38,163.36,44.1]
[1754412619765,12.61724947,163.4,163.37,15.24837714]
[1754412619918,12.61724947,163.39,163.38,44.1]
[1754412620128,13.27724947,163.39,163.38,44.1]
[1754412620533,12.61724947,163.39,163.38,44.1]
[1754412620834,12.61724947,163.4,163.38,44.1]
[1754412621046,26.0,163.41,163.38,44.1]
[1754412621252,12.61724947,163.4,163.38,44.1]
[1754412621438,12.61724947,163.39,163.38,44.1]
[1754412621644,13.27724947,163.39,163.38,44.1]
[1754412622272,12.61724947,163.39,163.38,44.1]
[1754412623133,32.77965655,163.41,163.39,15.24837714]
[1754412623134,12.61724947,163.41,163.39,15.24837714]
[1754412623337,12.61724947,163.41,163.4,44.1]
[1754412623536,16.67992942,163.41,163.4,44.1]
[1754412624343,22.79950594,163.41,163.4,44.1]
[1754412624632,17.33992942,163.41,163.4,44.1]
[1754412625052,23.45950594,163.41,163.4,44.1]
[1754412625839,23.45950594,163.41,163.32,89.78]
[1754412625840,26.0,163.4,163.32,89.78]
[1754412626065,12.61724947,163.35,163.33,59.20621557]
[1754412626253,0.66,163.37,163.33,59.20621557]
[1754412626559,12.61724947,163.38,163.35,15.10621557]
[1754412626875,12.61724947,163.37,163.36,59.20621557]
[1754412627232,12.61724947,163.37,163.36,59.34837714]
[1754412629245,26.66,163.4,163.37,15.10621557]
[1754412629449,12.61724947,163.39,163.38,44.78]
[1754412629672,12.61724947,163.39,163.38,59.20621557]
[1754412630859,13.27724947,163.39,163.38,59.20621557]
[1754412631259,6.1207002,163.38,163.33,89.1]
[1754412631463,12.61724947,163.34,163.31,15.16621557]
[1754412631735,12.61724947,163.32,163.31,0.06]
[1754412631935,12.61724947,163.32,163.31,44.30216157]
[1754412632244,12.61724947,163.32,163.31,44.16]
[1754412632957,12.61724947,163.32,163.31,59.26621557]
[1754412633946,12.61724947,163.33,163.32,15.10621557]
[1754412635289,0.7,163.37,163.32,21.37132595]
[1754412635490,12.61724947,163.35,163.34,15.10621557]
[1754412636255,26.0,163.34,163.31,0.06]
[1754412636457,6.82112131,163.37,163.32,59.20621557]
[1754412636670,12.61724947,163.34,163.32,59.20621557]
[1754412637305,0.7,163.36,163.31,0.20216157]
[1754412637467,12.61724947,163.33,163.32,59.20621557]
[1754412637674,12.61724947,163.34,163.33,15.24837714]
[1754412637998,12.61724947,163.36,163.33,60.06837714]
[1754412638214,44.1,163.42,163.34,0.86216157]
[1754412638388,12.61724947,163.41,163.36,27.86562661]
[1754412638711,38.61724947,163.42,163.38,0.14216157]
[1754412639009,12.61724947,163.42,163.39,44.1]
[1754412639497,19.43646388,163.42,163.39,44.1]
[1754412639801,13.31724947,163.42,163.39,44.1]
[1754412640306,12.61724947,163.42,163.4,15.10621557]
[1754412640513,44.73619666,163.43,163.41,44.1]
[1754412640670,16.66902192,163.42,163.41,44.1]
[1754412641172,4.05177245,163.42,163.41,44.1]
[1754412641384,16.66902192,163.42,163.41,44.1]
[1754412641909,4.05177245,163.42,163.41,44.1]
[1754412643014,4.05177245,163.42,163.41,59.34837714]
[1754412643189,4.05177245,163.42,163.41,60.06837714]
[1754412643380,4.05177245,163.44,163.42,15.10621557]
[1754412643586,4.05177245,163.44,163.43,44.1]
[1754412643808,4.05177245,163.44,163.43,59.20621557]
[1754412643986,16.86902192,163.46,163.43,44.1]
[1754412644182,12.81724947,163.46,163.43,44.82]
[1754412644496,0.2,163.46,163.43,44.82]
[1754412644708,12.81724947,163.46,163.43,44.82]
[1754412645982,18.93495823,163.46,163.43,44.1]
[1754412646320,13.31724947,163.45,163.43,44.1]
[1754412646989,13.31724947,163.45,163.44,15.10621557]
[1754412647927,18.73548065,163.45,163.43,44.1]
[1754412648114,39.31724947,163.44,163.42,44.08]
[1754412648322,13.31724947,163.43,163.4,44.08]
[1754412648523,12.61724947,163.41,163.4,59.18621557]
[1754412648684,26.0,163.44,163.41,15.10621557]
[1754412648887,38.61724947,163.44,163.42,44.08]
[1754412649200,12.61724947,163.43,163.42,44.08]
[1754412649606,38.61724947,163.44,163.43,15.10621557]
[1754412650244,45.43570272,163.44,163.36,0.72]
[1754412650419,12.61724947,163.41,163.39,0.14216157]
[1754412650600,32.81845325,163.44,163.41,15.10621557]
[1754412650800,12.61724947,163.43,163.42,44.08]
[1754412651295,18.7360771,163.43,163.42,44.08]
[1754412651532,19.4360771,163.43,163.42,44.08]
[1754412651911,12.61724947,163.43,163.42,44.08]
[1754412652514,13.31724947,163.43,163.42,44.08]
[1754412652935,6.81882763,163.43,163.42,44.08]
[1754412653230,19.4360771,163.43,163.42,44.08]
[1754412654241,23.4955727,163.43,163.42,44.08]
[1754412654399,32.11854905,163.44,163.42,44.08]
[1754412654716,12.61724947,163.43,163.42,59.18621557]
[1754412655423,12.61724947,163.43,163.41,44.08]
[1754412655424,17.37936888,163.43,163.41,44.08]
[1754412655603,13.31724947,163.42,163.41,44.08]
[1754412655803,13.31724947,163.42,163.36,0.72]
[1754412656031,47.41468218,163.44,163.37,59.32837714]
[1754412656032,12.61724947,163.38,163.37,59.32837714]
[1754412657507,19.43794967,163.38,163.37,44.08]
[1754412657697,19.43794967,163.38,163.32,0.72]
[1754412658021,19.43794967,163.38,163.31,0.06]
[1754412658022,4.76339917,163.37,163.33,59.18621557]
[1754412658527,0.7,163.36,163.33,59.18621557]
[1754412659316,12.61724947,163.34,163.33,59.18621557]
[1754412659530,12.61724947,163.34,163.33,60.04837714]
[1754412659721,12.61724947,163.34,163.33,59.32837714]
[1754412660546,12.61724947,163.34,163.33,15.24837714]
[1754412660755,18.73944856,163.34,163.31,0.06]
[1754412661047,51.51882208,163.32,163.31,0.06]
[1754412661351,26.0,163.27,163.25,0.06]
[1754412661648,12.61724947,163.26,163.25,0.06]
[1754412662349,12.61724947,163.27,163.25,15.88621557]
[1754412662532,12.61724947,163.27,163.26,44.94216157]
[1754412663250,12.61724947,163.29,163.27,15.10621557]
[1754412663422,12.61724947,163.3,163.29,15.10621557]
[1754412665256,26.0,163.33,163.3,0.14216157]
[1754412665452,0.71,163.35,163.32,15.10621557]
[1754412665453,12.61724947,163.35,163.32,15.10621557]
[1754412665651,12.61724947,163.35,163.34,15.10621557]
[1754412666035,12.61724947,163.38,163.34,15.89837714]
[1754412666234,12.61724947,163.38,163.36,15.10621557]
[1754412666452,12.61724947,163.37,163.36,15.10621557]
[1754412668558,12.61724947,163.38,163.36,15.10621557]
[1754412668733,32.12048451,163.39,163.36,15.10621557]
[1754412668940,12.61724947,163.38,163.36,15.75621557]
[1754412669238,6.11845325,163.44,163.38,15.10621557]
[1754412669445,12.61724947,163.42,163.4,15.10621557]
[1754412669765,12.61724947,163.41,163.4,15.10621557]
[1754412669942,12.61724947,163.42,163.4,15.10621557]
[1754412670148,6.11845325,163.44,163.4,15.10621557]
[1754412670458,12.61724947,163.43,163.41,44.08]
[1754412670659,12.61724947,163.44,163.42,15.10621557]
[1754412670831,0.03,163.45,163.42,15.10621557]
[1754412670832,0.03,163.45,163.44,15.10621557]
[1754412671151,0.03,163.45,163.44,15.24837714]
[1754412671336,0.03,163.45,163.44,15.89837714]
[1754412671855,0.03,163.45,163.44,34.63407986]
[1754412673154,0.03,163.45,163.44,22.01683039]
[1754412673339,0.03,163.45,163.44,34.63407986]
[1754412674434,0.03,163.45,163.44,34.918403]
[1754412680241,0.03,163.45,163.44,35.53024832]
[1754412680866,1e-08,163.45,163.44,74.14749779]
[1754412682084,1e-08,163.45,163.44,61.53024832]
[1754412682263,1e-08,163.45,163.44,60.918403]
[1754412682449,0.03,163.48,163.47,103.97621556]
[1754412682648,0.03,163.48,163.47,160.7756266]
[1754412682850,0.03,163.48,163.47,161.4256266]
[1754412683053,0.03,163.48,163.47,161.70994974]
[1754412684167,0.03,163.48,163.47,167.82728013]
[1754412684963,0.03,163.48,163.47,154.27570752]
[1754412685167,0.03,163.48,163.47,166.89295699]
[1754412685377,0.03,163.48,163.47,167.82728013]
[1754412686892,0.03,163.48,163.47,110.23570752]
[1754412687075,0.03,163.48,163.47,166.87295699]
[1754412687390,0.03,163.48,163.47,167.52295699]
[1754412687588,0.03,163.48,163.47,166.87295699]
[1754412688092,0.03,163.48,163.47,167.52295699]
[1754412688492,0.74,163.48,163.47,166.87295699]
[1754412688785,0.03,163.48,163.47,166.87295699]
[1754412689780,0.03,163.48,163.47,167.80728013]
[1754412689995,1e-08,163.48,163.47,167.80728013]
[1754412691473,1e-08,163.48,163.47,193.80728013]
[1754412691872,0.03,163.53,163.48,15.53270028]
[1754412692071,0.03,163.53,163.52,27.86562661]
[1754412692291,0.03,163.53,163.52,166.87108648]
[1754412692500,0.03,163.53,163.52,167.52108648]
[1754412692697,0.03,163.53,163.52,166.87108648]
[1754412693202,9.14383763,163.57,163.53,0.14216157]
[1754412693400,9.14383763,163.57,163.52,182.95189775]
[1754412693401,9.14383763,163.57,163.56,27.86562661]
[1754412693582,9.14383763,163.57,163.56,59.26837714]
[1754412693994,9.82383763,163.57,163.56,59.26837714]
[1754412694187,9.82383763,163.57,163.56,65.38234143]
[1754412694702,9.82383763,163.57,163.53,15.10621557]
[1754412694703,48.4410871,163.57,163.53,15.10621557]
[1754412694883,12.61724947,163.55,163.53,21.22106866]
[1754412695089,12.61724947,163.55,163.54,59.12621557]
[1754412695299,35.14383763,163.57,163.55,15.10621557]
[1754412695487,47.7610871,163.57,163.56,44.02]
[1754412695874,48.4410871,163.57,163.56,44.02]
[1754412696095,13.29724947,163.57,163.56,59.12621557]
[1754412696486,0.68,163.57,163.56,65.24017986]
[1754412696694,13.29724947,163.57,163.56,65.24017986]
[1754412696889,0.68,163.57,163.56,65.24017986]
[1754412700006,0.68,163.57,163.56,59.12621557]
[1754412700201,13.29724947,163.57,163.51,15.10621557]
[1754412700388,12.61724947,163.55,163.52,44.0]
[1754412700592,0.2,163.58,163.55,0.14216157]
[1754412700790,0.2,163.58,163.57,15.10621557]
[1754412701394,0.6039035,163.6,163.57,15.10621557]
[1754412701584,0.6039035,163.6,163.59,15.10621557]
[1754412701792,0.2,163.62,163.59,27.72346504]
[1754412701991,0.2,163.62,163.6,56.61724947]
[1754412702709,0.2,163.62,163.61,6.11209583]
[1754412702918,0.2,163.62,163.61,33.97772244]
[1754412703097,0.2,163.62,163.61,34.69772244]
[1754412703418,0.2,163.62,163.61,33.97772244]
[1754412703616,0.2,163.62,163.61,21.36047297]
[1754412703911,13.49724947,163.62,163.61,59.10621557]
[1754412704286,0.88,163.62,163.61,59.10621557]
[1754412705615,0.2,163.62,163.61,65.2183114]
[1754412706406,0.2,163.62,163.61,65.36047297]
[1754412708025,0.2,163.62,163.61,77.97772244]
[1754412708204,0.2,163.62,163.61,167.56772243]
[1754412710192,0.2,163.62,163.61,154.23047296]
[1754412710421,0.2,163.62,163.61,166.84772243]
[1754412710623,0.2,163.62,163.61,154.23047296]
[1754412711020,0.2,163.62,163.61,166.84772243]
[1754412711219,0.2,163.62,163.61,167.56772243]
[1754412711654,0.2,163.62,163.61,77.97772244]
[1754412712231,0.2,163.62,163.61,78.69772244]
[1754412713737,0.2,163.62,163.61,21.36047297]
[1754412713945,0.2,163.62,163.61,65.32047297]
[1754412714358,0.2,163.62,163.61,77.93772244]
[1754412716374,0.2,163.62,163.61,78.65772244]
[1754412717750,0.2,163.63,163.62,15.24837714]
[1754412718049,0.2,163.63,163.62,28.58562661]
[1754412718449,0.03,163.64,163.62,28.58562661]
[1754412718664,0.03,163.64,163.63,72.54562661]
[1754412719649,0.03,163.64,163.63,78.65697538]
[1754412720357,0.03,163.64,163.63,77.91697538]
[1754412720559,0.03,163.64,163.63,78.63697538]
[1754412720956,1e-08,163.64,163.63,78.63697538]
[1754412722090,1e-08,163.64,163.63,78.92129852]
[1754412722254,1e-08,163.66,163.65,27.86562661]
[1754412722598,1e-08,163.66,163.65,71.80562661]
[1754412722748,1e-08,163.66,163.65,72.80994975]
[1754412723058,1e-08,163.68,163.66,0.42648471]
[1754412723258,0.03,163.71,163.69,0.42648471]
[1754412723464,0.03,163.73,163.72,27.86562661]
[1754412723662,0.03,163.73,163.72,71.80562661]
[1754412723865,0.03,163.73,163.72,77.91361585]
[1754412724061,0.67,163.76,163.72,78.62361585]
[1754412724365,0.67,163.81,163.74,0.42648471]
[1754412724660,0.67,163.81,163.8,27.72346504]
[1754412724865,0.67,163.81,163.8,59.04621557]
[1754412725191,0.67,163.85,163.82,0.14216157]
[1754412725359,0.67,163.85,163.84,15.24837714]
[1754412725560,7.17226133,163.89,163.84,71.80562661]
[1754412725759,0.67,163.87,163.84,71.80562661]
[1754412725959,0.67,163.87,163.86,15.10621557]
[1754412726264,7.17226133,163.89,163.86,59.02621557]
[1754412726471,13.27394688,163.89,163.86,59.02621557]
[1754412726776,0.03,163.87,163.86,59.02621557]
[1754412726981,0.7,163.87,163.86,59.02621557]
[1754412727786,0.03,163.87,163.86,59.02621557]
[1754412727958,0.03,163.87,163.86,77.74623569]
[1754412728164,0.03,163.87,163.86,71.64346504]
[1754412728362,0.7,163.87,163.86,59.02621557]
[1754412728999,0.03,163.87,163.86,59.02621557]
[1754412729210,0.03,163.87,163.86,71.64346504]
[1754412729377,0.7,163.87,163.86,59.02621557]
[1754412731005,19.70397085,163.87,163.79,12.61724947]
[1754412731167,12.61724947,163.84,163.8,43.9]
[1754412731367,0.67,163.83,163.8,43.9]
[1754412731677,0.67,163.83,163.81,15.10621557]
[1754412731870,26.0,163.85,163.82,43.9]
[1754412732073,18.72113764,163.83,163.81,43.9]
[1754412732294,18.72113764,163.83,163.77,43.9]
[1754412732295,12.91941104,163.82,163.77,43.9]
[1754412732505,12.61724947,163.78,163.77,43.9]
[1754412732911,0.16,163.8,163.77,43.9]
[1754412733214,12.61724947,163.78,163.77,43.9]
[1754412733497,0.14216157,163.82,163.77,43.9]
[1754412733816,12.61724947,163.78,163.77,59.00621557]
[1754412734329,12.61724947,163.82,163.78,15.10621557]
[1754412734474,38.61724947,163.83,163.8,15.10621557]
[1754412734674,12.61724947,163.82,163.81,43.9]
[1754412735120,12.61725,163.85,163.82,15.10621557]
[1754412735277,12.61725,163.85,163.84,15.10621557]
[1754412736092,12.61725,163.85,163.83,43.9]
[1754412736093,12.61724947,163.85,163.83,43.9]
[1754412736380,12.61724947,163.84,163.8,0.14216157]
[1754412736580,12.61724947,163.82,163.81,59.00621557]
[1754412736787,12.61724947,163.82,163.81,43.9]
[1754412737283,12.61724947,163.84,163.82,15.10621557]
[1754412737594,12.61724947,163.84,163.83,43.9]
[1754412737906,6.10277939,163.86,163.84,15.10621557]
[1754412737907,12.61724947,163.86,163.84,15.10621557]
[1754412738073,32.13250184,163.87,163.85,43.9]
[1754412738423,12.61724947,163.86,163.85,43.9]
[1754412738586,13.06157261,163.86,163.85,43.9]
[1754412739284,13.06157261,163.86,163.83,43.9]
[1754412739481,12.61724947,163.84,163.83,43.9]
[1754412739700,12.77724947,163.84,163.83,43.9]
[1754412740402,18.72076509,163.84,163.83,43.9]
[1754412740577,6.10351562,163.84,163.83,43.9]
[1754412740773,12.61724947,163.84,163.83,43.9]
[1754412740974,18.72076509,163.84,163.83,43.9]
[1754412741187,18.88076509,163.84,163.83,43.9]
[1754412741582,18.88076509,163.84,163.77,15.10621557]
[1754412741784,12.61724947,163.8,163.79,15.10621557]
[1754412742405,6.26351562,163.84,163.79,15.10621557]
[1754412742406,12.61724947,163.81,163.79,15.10621557]
[1754412742598,12.61724947,163.85,163.81,15.10621557]
[1754412742779,12.61724947,163.85,163.83,15.10621557]
[1754412742979,12.61724947,163.85,163.84,43.88]
[1754412743606,26.03,163.87,163.84,43.88]
[1754412743919,0.03,163.87,163.85,28.43346504]
[1754412744218,0.03,163.87,163.86,59.69621557]
[1754412744580,0.03,163.87,163.86,72.45562661]
[1754412744788,0.03,163.87,163.86,71.74562661]
[1754412744987,0.03,163.87,163.86,72.45562661]
[1754412745791,0.03,163.87,163.86,78.55839726]
[1754412748186,0.03,163.87,163.86,15.10621557]
[1754412748386,0.03,163.87,163.86,58.98621557]
[1754412749698,12.64724947,163.87,163.86,43.88]
[1754412750496,0.03,163.87,163.86,43.88]
[1754412750697,0.03,163.87,163.86,58.98621557]
[1754412751102,12.64724947,163.87,163.86,43.88]
[1754412751418,18.74964771,163.87,163.86,43.88]
[1754412752009,12.64724947,163.87,163.86,43.88]
[1754412753501,18.74964771,163.87,163.86,43.88]
[1754412754612,12.64724947,163.87,163.86,43.88]
[1754412754816,0.03,163.87,163.86,59.64621557]
[1754412754998,0.03,163.87,163.86,65.74898622]
[1754412755201,0.03,163.87,163.86,78.50839726]
[1754412755909,0.1,163.88,163.86,78.50839726]
[1754412756112,0.03,163.89,163.88,21.35040301]
[1754412756321,0.03,163.89,163.88,77.82765248]
[1754412756502,0.03,163.89,163.88,78.48765248]
[1754412756916,0.03,163.89,163.88,15.10621557]
[1754412757133,0.03,163.89,163.88,65.72824144]
[1754412757313,0.03,163.89,163.88,78.48765248]
[1754412758432,0.03,163.89,163.88,22.01040301]
[1754412758625,0.03,163.89,163.88,65.21040301]
[1754412759205,0.03,163.89,163.88,65.87040301]
[1754412760405,0.03,163.89,163.88,78.48765248]
[1754412763637,12.61724947,163.96,163.89,15.24837714]
[1754412763823,12.61724947,163.96,163.92,0.14216157]
[1754412764002,12.61724947,163.95,163.94,15.10621557]
[1754412764203,12.61724947,163.96,163.94,15.10621557]
[1754412764431,12.61724947,163.96,163.95,58.94621557]
[1754412764822,12.61724947,163.97,163.95,58.94621557]
[1754412765447,32.09796263,163.99,163.95,15.10621557]
[1754412765602,38.90724947,163.96,163.86,15.76621557]
[1754412765808,12.61724947,163.91,163.87,43.84]
[1754412766335,12.61724947,163.91,163.87,44.5]
[1754412766504,12.61724947,163.91,163.89,15.10621557]
[1754412766707,12.61724947,163.91,163.9,58.94621557]
[1754412767242,12.61724947,163.92,163.9,58.94621557]
[1754412768004,6.3895341,163.95,163.91,15.10621557]
[1754412768244,6.3895341,163.95,163.92,43.84]
[1754412768245,12.61724947,163.93,163.92,43.84]
[1754412768842,12.90724947,163.93,163.92,43.84]
[1754412769161,12.61724947,163.93,163.92,43.84]
[1754412770356,18.71741417,163.93,163.92,43.84]
[1754412770740,19.00741417,163.93,163.89,0.06]
[1754412770940,0.29,163.92,163.9,43.84]
[1754412771236,12.61724947,163.91,163.9,43.84]
[1754412772121,12.90724947,163.91,163.9,43.84]
[1754412772448,12.90724947,163.91,163.89,0.06]
[1754412772606,0.29,163.91,163.9,43.84]
[1754412772807,19.0081585,163.91,163.9,43.84]
[1754412773027,18.7181585,163.91,163.9,43.84]
[1754412773406,12.61724947,163.91,163.9,43.84]
[1754412774532,26.0,163.9,163.89,0.06]
[1754412774732,45.29285387,163.9,163.89,0.06]
[1754412775618,45.29285387,163.9,163.87,0.06]
[1754412775619,64.61078019,163.9,163.87,0.06]
[1754412775810,12.90157261,163.88,163.87,0.06]
[1754412776214,13.19157261,163.88,163.87,0.06]
[1754412776544,12.90157261,163.88,163.87,0.06]
[1754412777043,19.00359848,163.88,163.87,0.06]
[1754412777224,19.29359848,163.88,163.87,0.06]
[1754412778039,19.00359848,163.88,163.87,0.06]
[1754412778547,19.29359848,163.88,163.87,0.06]
[1754412778911,45.29359848,163.88,163.87,0.06]
[1754412779112,19.29359848,163.88,163.87,0.06]
[1754412779315,49.36131061,163.88,163.87,0.06]
[1754412779616,45.29359848,163.88,163.87,0.06]
[1754412779838,19.29359848,163.88,163.87,0.06]
[1754412780138,45.00359848,163.88,163.87,0.06]
[1754412780363,26.0,163.85,163.81,0.06]
[1754412780514,12.61724947,163.82,163.81,0.06]
[1754412780713,26.0,163.85,163.81,0.06]
[1754412780937,12.61724947,163.82,163.81,0.72]
[1754412781237,12.61724947,163.82,163.81,0.06]
[1754412781436,12.61724947,163.82,163.81,0.72]
[1754412782149,12.61724947,163.82,163.81,0.06]
[1754412782362,12.61724947,163.82,163.79,0.06]
[1754412782363,13.19157261,163.82,163.79,0.06]
[1754412782560,25.51882208,163.8,163.79,0.06]
[1754412782726,12.90157261,163.8,163.79,0.06]
[1754412782927,19.00657871,163.8,163.79,0.06]
[1754412784963,26.0,163.8,163.79,0.77]
[1754412785165,38.61724947,163.8,163.79,0.77]
[1754412786638,38.90157261,163.8,163.79,0.06]
[1754412786829,57.91382818,163.8,163.79,0.06]
[1754412787029,45.00657871,163.8,163.79,0.06]
[1754412790951,38.61724947,163.8,163.79,0.06]
[1754412791175,38.61724947,163.8,163.79,0.77]
[1754412791476,44.72225557,163.8,163.79,0.06]
[1754412792277,38.61724947,163.8,163.79,0.06]
[1754412792660,44.72225557,163.8,163.79,0.06]
[1754412794883,45.00657871,163.8,163.79,0.06]
[1754412795058,45.29657871,163.8,163.79,0.06]
[1754412795257,57.91382818,163.8,163.79,0.06]
[1754412795673,57.91382818,163.8,163.77,0.06]
[1754412795674,0.28432314,163.79,163.77,0.06]
[1754412795866,38.90724947,163.78,163.77,0.06]
[1754412796964,45.01300108,163.78,163.77,0.06]
[1754412797165,60.11921708,163.78,163.77,0.06]
[1754412797382,59.82921708,163.78,163.77,0.06]
[1754412797577,38.61724947,163.78,163.77,0.06]
[1754412797760,44.72300108,163.78,163.77,0.77]
[1754412798095,44.72300108,163.78,163.77,0.06]
[1754412798459,45.00732422,163.78,163.77,0.06]